fUST/lending_fUST_20240819
["ID","MTS","AMOUNT","RATE_DAILY","PERIOD"]
[335292481,1724076644753,-500.0,0.00016438,2]
[335292482,1724076644763,-500.0,0.00016438,2]
[335292483,1724076644774,-500.0,0.00016438,2]
[335292484,1724076644784,-823.0,0.00016444,2]
[335292485,1724076644795,-300.0,0.000165,6]
[335292486,1724076644805,-188.39352028,0.00016612,2]
[335292487,1724076644815,-4650.18677541,0.00016642,2]
[335292488,1724076644825,-59111.2605359,0.00016702,2]
[335292489,1724076644835,-391.2441703,0.00016712,2]
[335292490,1724076644846,-500.0,0.00016712,2]
[335292491,1724076644855,-553.15,0.00016712,2]
[335292492,1724076644866,-500.0,0.00016712,2]
[335292493,1724076644877,-500.0,0.00016712,2]
[335292494,1724076644886,-500.0,0.00016712,2]
[335292495,1724076644897,-500.0,0.00016712,2]
[335292496,1724076644907,-500.0,0.00016712,2]
[335292497,1724076644917,-554.12,0.00016712,2]
[335292498,1724076644927,-500.0,0.00016712,2]
[335292499,1724076644938,-500.0,0.00016712,2]
[335292500,1724076644949,-678.27,0.00016712,2]
[335292501,1724076644959,-500.0,0.00016712,2]
[335292502,1724076644969,-500.0,0.00016712,2]
[335292503,1724076644981,-500.0,0.00016712,2]
[335292504,1724076644991,-500.0,0.00016712,2]
[335292505,1724076645001,-500.0,0.00016712,2]
[335292506,1724076645012,-593.00086948,0.00016712,2]
[335292507,1724076645024,-500.0,0.00016712,2]
[335292508,1724076645034,-500.0,0.00016712,2]
[335292509,1724076645044,-645.45,0.00016712,2]
[335292510,1724076645054,-500.0,0.00016712,2]
[335292511,1724076645064,-500.0,0.00016712,2]
[335292512,1724076645074,-500.0,0.00016712,2]
[335292513,1724076645084,-500.0,0.00016712,2]
[335292514,1724076645093,-520.16,0.00016712,2]
[335292515,1724076645105,-500.0,0.00016712,2]
[335292516,1724076645118,-500.0,0.00016712,2]
[335292517,1724076645128,-687.18,0.00016712,2]
[335292518,1724076645138,-586.07122203,0.00016712,2]
[335292519,1724076645147,-572.38,0.00016712,2]
[335292520,1724076645157,-500.0,0.00016712,2]
[335292521,1724076645167,-500.0,0.00016712,2]
[335292522,1724076645177,-500.0,0.00016712,2]
[335292523,1724076645187,-565.33,0.00016712,2]
[335292524,1724076645197,-500.0,0.00016712,2]
[335292525,1724076645206,-500.0,0.00016712,2]
[335292526,1724076645216,-500.0,0.00016712,2]
[335292527,1724076645225,-500.0,0.00016712,2]
[335292528,1724076645235,-500.0,0.00016712,2]
[335292529,1724076645244,-364.45625135,0.00016712,2]
[335292530,1724076645254,-500.0,0.00016712,2]
[335292531,1724076645264,-500.0,0.00016712,2]
[335292532,1724076645274,-500.0,0.00016712,2]
[335292533,1724076645284,-500.0,0.00016712,2]
[335292534,1724076645295,-500.0,0.00016712,2]
[335292535,1724076645305,-502.7247698,0.00016712,2]
[335292536,1724076645315,-500.0,0.00016712,2]
[335292537,1724076645325,-500.0,0.00016712,2]
[335292538,1724076645336,-500.0,0.00016712,2]
[335292539,1724076645346,-500.0,0.00016712,2]
[335292540,1724076645355,-500.0,0.00016712,2]
[335292541,1724076645367,-500.0,0.00016712,2]
[335292542,1724076645384,-500.0,0.00016712,2]
[335292543,1724076645394,-500.0,0.00016712,2]
[335292544,1724076645404,-500.0,0.00016712,2]
[335292545,1724076645414,-500.0,0.00016712,2]
[335292546,1724076645424,-500.0,0.00016712,2]
[335292547,1724076645434,-500.0,0.00016712,2]
[335292548,1724076645444,-500.0,0.00016712,2]
[335292549,1724076645454,-500.0,0.00016712,2]
[335292550,1724076645464,-500.0,0.00016712,2]
[335292551,1724076645474,-500.0,0.00016712,2]
[335292552,1724076645484,-565.36,0.00016712,2]
[335292553,1724076645493,-500.0,0.00016712,2]
[335292554,1724076645502,-500.0,0.00016712,2]
[335292555,1724076645511,-500.0,0.00016712,2]
[335292556,1724076645521,-500.0,0.00016712,2]
[335292557,1724076645530,-551.76661343,0.00016712,2]
[335292558,1724076645540,-500.0,0.00016712,2]
[335292559,1724076645551,-500.0,0.00016712,2]
[335292560,1724076645562,-500.0,0.00016712,2]
[335292561,1724076645573,-500.0,0.00016712,2]
[335292562,1724076645584,-500.0,0.00016712,2]
[335292563,1724076645594,-1241.35,0.00016712,2]
[335292564,1724076645605,-500.0,0.00016712,2]
[335292565,1724076645618,-511.84544462,0.00016712,2]
[335292566,1724076645630,-500.0,0.00016712,2]
[335292567,1724076645642,-500.0,0.00016712,2]
[335292568,1724076645652,-500.0,0.00016712,2]
[335292569,1724076645663,-500.0,0.00016712,2]
[335292570,1724076645677,-500.0,0.00016712,2]
[335292571,1724076645687,-500.0,0.00016712,2]
[335292572,1724076645696,-500.0,0.00016712,2]
[335292573,1724076645707,-500.0,0.00016712,2]
[335292574,1724076645717,-500.0,0.00016712,2]
[335292575,1724076645728,-500.0,0.00016712,2]
[335292576,1724076645737,-500.0,0.00016712,2]
[335292577,1724076645749,-229.36116087,0.00016712,2]
[335292578,1724076645759,-500.0,0.00016712,2]
[335292579,1724076645769,-500.0,0.00016712,2]
[335292580,1724076645779,-500.0,0.00016712,2]
[335292581,1724076645789,-500.0,0.00016712,2]
[335292582,1724076645798,-500.0,0.00016712,2]
[335292583,1724076645807,-500.0,0.00016712,2]
[335292584,1724076645821,-500.0,0.00016712,2]
[335292585,1724076645839,-500.0,0.00016712,2]
[335292586,1724076645855,-500.0,0.00016712,2]
[335292587,1724076645875,-500.0,0.00016712,2]
[335292588,1724076645888,-500.0,0.00016712,2]
[335292589,1724076645900,-500.0,0.00016712,2]
[335292590,1724076645915,-281.09421595,0.00016712,2]
[335292591,1724076645931,-500.0,0.00016712,2]
[335292592,1724076645942,-500.0,0.00016712,2]
[335292593,1724076645957,-500.0,0.00016712,2]
[335292594,1724076645969,-500.0,0.00016712,2]
[335292595,1724076645983,-500.0,0.00016712,2]
[335292596,1724076645996,-575.77500427,0.00016712,2]
[335292597,1724076646009,-500.0,0.00016712,2]
[335292598,1724076646021,-161.61089801,0.00016712,2]
[335292599,1724076646035,-500.0,0.00016712,2]
[335292600,1724076646046,-500.0,0.00016712,2]
[335292601,1724076646056,-500.0,0.00016712,2]
[335292602,1724076646069,-500.0,0.00016712,2]
[335292603,1724076646082,-500.0,0.00016712,2]
[335292604,1724076646093,-500.0,0.00016712,2]
[335292606,1724076646106,-500.0,0.00016712,2]
[335292608,1724076646120,-500.0,0.00016712,2]
[335292610,1724076646133,-500.0,0.00016712,2]
[335292612,1724076646145,-500.0,0.00016712,2]
[335292613,1724076646157,-500.0,0.00016712,2]
[335292614,1724076646169,-500.0,0.00016712,2]
[335292615,1724076646182,-500.0,0.00016712,2]
[335292616,1724076646193,-368.63936798,0.00016712,2]
[335292617,1724076646205,-500.0,0.00016712,2]
[335292618,1724076646219,-500.0,0.00016712,2]
[335292619,1724076646231,-500.0,0.00016712,2]
[335292620,1724076646244,-500.0,0.00016712,2]
[335292621,1724076646256,-500.0,0.00016712,2]
[335292622,1724076646268,-500.0,0.00016712,2]
[335292623,1724076646281,-739.09,0.00016712,2]
[335292624,1724076646293,-500.0,0.00016712,2]
[335292625,1724076646305,-500.0,0.00016712,2]
[335292626,1724076646317,-500.0,0.00016712,2]
[335292627,1724076646330,-500.0,0.00016712,2]
[335292628,1724076646343,-500.0,0.00016712,2]
[335292629,1724076646355,-500.0,0.00016712,2]
[335292630,1724076646367,-500.0,0.00016712,2]
[335292631,1724076646377,-500.0,0.00016712,2]
[335292632,1724076646387,-500.0,0.00016712,2]
[335292633,1724076646399,-1788.04,0.00016712,2]
[335292634,1724076646410,-500.0,0.00016712,2]
[335292636,1724076646423,-169.27073828,0.00016712,2]
[335292638,1724076646436,-654.15,0.00016712,2]
[335292639,1724076646447,-500.0,0.00016712,2]
[335292640,1724076646458,-500.0,0.00016712,2]
[335292641,1724076646469,-500.0,0.00016712,2]
[335292642,1724076646480,-500.0,0.00016712,2]
[335292643,1724076646491,-500.0,0.00016712,2]
[335292644,1724076646504,-500.0,0.00016712,2]
[335292645,1724076646517,-509.84,0.00016712,2]
[335292646,1724076646528,-500.0,0.00016712,2]
[335292647,1724076646539,-500.0,0.00016712,2]
[335292648,1724076646549,-500.0,0.00016712,2]
[335292649,1724076646560,-500.0,0.00016712,2]
[335292650,1724076646571,-500.0,0.00016712,2]
[335292651,1724076646583,-1363.77,0.00016712,2]
[335292653,1724076646594,-500.0,0.00016712,2]
[335292655,1724076646605,-500.0,0.00016712,2]
[335292657,1724076646618,-380.44301361,0.00016712,2]
[335292659,1724076646630,-500.0,0.00016712,2]
[335292660,1724076646642,-211.03913801,0.00016712,2]
[335292661,1724076646654,-500.0,0.00016712,2]
[335292662,1724076646667,-515.91,0.00016712,2]
[335292663,1724076646679,-500.0,0.00016712,2]
[335292664,1724076646691,-500.0,0.00016712,2]
[335292665,1724076646702,-500.0,0.00016712,2]
[335292667,1724076646715,-500.0,0.00016712,2]
[335292668,1724076646727,-500.0,0.00016712,2]
[335292669,1724076646739,-500.0,0.00016712,2]
[335292670,1724076646752,-500.0,0.00016712,2]
[335292671,1724076646764,-500.0,0.00016712,2]
[335292672,1724076646775,-500.0,0.00016712,2]
[335292673,1724076646787,-500.0,0.00016712,2]
[335292674,1724076646799,-500.0,0.00016712,2]
[335292675,1724076646811,-500.0,0.00016712,2]
[335292676,1724076646823,-500.0,0.00016712,2]
[335292677,1724076646834,-500.0,0.00016712,2]
[335292678,1724076646848,-500.0,0.00016712,2]
[335292680,1724076646859,-500.0,0.00016712,2]
[335292682,1724076646875,-500.0,0.00016712,2]
[335292683,1724076646886,-500.0,0.00016712,2]
[335292684,1724076646898,-500.0,0.00016712,2]
[335292685,1724076646910,-500.0,0.00016712,2]
[335292686,1724076646921,-500.0,0.00016712,2]
[335292687,1724076646933,-500.0,0.00016712,2]
[335292688,1724076646944,-523.1,0.00016712,2]
[335292689,1724076646957,-500.0,0.00016712,2]
[335292690,1724076646968,-500.0,0.00016712,2]
[335292691,1724076646980,-500.0,0.00016712,2]
[335292692,1724076646991,-500.0,0.00016712,2]
[335292693,1724076647002,-500.0,0.00016712,2]
[335292694,1724076647013,-500.0,0.00016712,2]
[335292695,1724076647024,-500.0,0.00016712,2]
[335292696,1724076647036,-500.0,0.00016712,2]
[335292697,1724076647048,-500.0,0.00016712,2]
[335292698,1724076647059,-500.0,0.00016712,2]
[335292699,1724076647070,-500.0,0.00016712,2]
[335292700,1724076647082,-500.0,0.00016712,2]
[335292701,1724076647093,-500.0,0.00016712,2]
[335292702,1724076647106,-500.0,0.00016712,2]
[335292703,1724076647118,-500.0,0.00016712,2]
[335292704,1724076647129,-500.0,0.00016712,2]
[335292705,1724076647141,-500.0,0.00016712,2]
[335292706,1724076647154,-500.0,0.00016712,2]
[335292707,1724076647167,-500.0,0.00016712,2]
[335292708,1724076647178,-500.0,0.00016712,2]
[335292709,1724076647189,-259.45228411,0.00016712,2]
[335292710,1724076647201,-500.0,0.00016712,2]
[335292711,1724076647211,-500.0,0.00016712,2]
[335292712,1724076647223,-500.0,0.00016712,2]
[335292713,1724076647234,-500.0,0.00016712,2]
[335292714,1724076647246,-500.0,0.00016712,2]
[335292715,1724076647259,-500.0,0.00016712,2]
[335292716,1724076647270,-500.0,0.00016712,2]
[335292717,1724076647281,-500.0,0.00016712,2]
[335292718,1724076647292,-500.0,0.00016712,2]
[335292719,1724076647302,-66.85008502,0.00016712,2]
[335292720,1724076647782,273.37336231,9.9e-05,2]
[335292721,1724076651164,273.37336231,9.9e-05,2]
[335292722,1724076659364,273.37336231,9.9e-05,2]
[335292723,1724076660539,154.79103211,0.00012,2]
[335292724,1724076666943,600.88577429,0.00012,2]
[335292725,1724076668014,273.37336231,9.9e-05,2]
[335292726,1724076676166,273.37336231,9.9e-05,2]
[335292727,1724076678193,232.94116812,0.00012,2]
[335292729,1724076684799,273.37336231,9.9e-05,2]
[335292730,1724076686370,196.59315122,0.00012,2]
[335292731,1724076687302,780.88884995,0.00012,2]
[335292732,1724076690898,226.81150373,0.00012163,2]
[335292733,1724076691298,460.45193966,0.00012,2]
[335292734,1724076692569,155.32884545,0.00012,2]
[335292735,1724076693095,273.37336231,9.9e-05,2]
[335292736,1724076695319,728.79489661,0.00012,2]
[335292737,1724076696525,155.96495499,0.00012,2]
[335292738,1724076701809,273.37336231,9.9e-05,2]
[335292739,1724076710325,728.79489661,0.00012,2]
[335292740,1724076710761,273.37336231,9.9e-05,2]
[335292741,1724076719477,273.37336231,9.9e-05,2]
[335292742,1724076724945,405.4347584,0.00012,2]
[335292743,1724076727575,273.37336231,9.9e-05,2]
[335292744,1724076736750,273.37336231,9.9e-05,2]
[335292763,1724077647157,-898.59338305,8.793e-05,2]
[335292764,1724077647180,-273.37336231,9.045e-05,2]
[335292765,1724077647202,-273.37336231,9.136e-05,2]
[335292766,1724077647224,-342.65845262,9.429e-05,2]
[335292767,1724077647247,-154.80647338,9.429e-05,2]
[335292768,1724077647270,-569.55611374,9.429e-05,2]
[335292769,1724077647294,-156.82494329,9.429e-05,2]
[335292770,1724077647316,-404.43330921,9.429e-05,2]
[335292771,1724077647338,-155.45278767,9.429e-05,2]
[335292772,1724077647360,-544.00882293,9.524e-05,2]
[335292773,1724077647388,-13399.19435036,9.567e-05,2]
[335292774,1724077650095,-11500.80564964,9.567e-05,2]
[335292775,1724077650296,-166.432675,9.593e-05,2]
[335292776,1724077650320,-166.432675,9.641e-05,2]
[335292777,1724077650342,-160.44466579,9.899e-05,2]
[335292778,1724077650364,-215.09903404,9.899e-05,2]
[335292779,1724077650386,-404.84684533,9.9e-05,2]
[335292780,1724077650408,-2263.564877,9.9e-05,2]
[335292781,1724077650429,-688.676981,9.939e-05,2]
[335292782,1724077650451,-175.74773808,9.939e-05,2]
[335292783,1724077650471,-413.66267349,0.0001,2]
[335292784,1724077650492,-811.38667937,0.00010081,2]
[335292785,1724077650514,-250.0,0.00010112,2]
[335292786,1724077650537,-250.0,0.0001014,2]
[335292787,1724077650560,-250.0,0.00010167,2]
[335292788,1724077650584,-250.0,0.00010195,2]
[335292789,1724077650607,-250.0,0.00010223,2]
[335292790,1724077650637,-250.0,0.0001025,2]
[335292791,1724077650663,-250.0,0.00010278,2]
[335292792,1724077650689,-250.0,0.00010306,2]
[335292793,1724077650712,-250.0,0.00010334,2]
[335292794,1724077650736,-250.0,0.00010361,2]
[335292795,1724077650760,-250.0,0.00010389,2]
[335292796,1724077650783,-250.0,0.00010417,2]
[335292797,1724077650807,-250.0,0.00010445,2]
[335292798,1724077650830,-250.0,0.00010472,2]
[335292799,1724077650854,-250.0,0.000105,2]
[335292800,1724077650880,-250.0,0.00010528,2]
[335292801,1724077650903,-250.0,0.00010555,2]
[335292802,1724077650927,-250.0,0.00010583,2]
[335292803,1724077650951,-250.0,0.00010611,2]
[335292804,1724077650974,-250.0,0.00010639,2]
[335292805,1724077651000,-422.14513971,0.00010739,2]
[335292806,1724077651022,-241.85486353,0.00011842,2]
[335292807,1724077651044,-288.27624498,0.00011894,2]
[335292808,1724077651067,-9659.27545044,0.00011987,2]
[335292809,1724077651089,-7013.41255393,0.00012516,2]
[335292810,1724077651110,-4035.08861455,0.00012629,2]
[335292820,1724077773109,-150.1460109,8.883e-05,2]
[335292876,1724077832631,-1908.03059565,8.883e-05,2]
[335292877,1724077833305,-6907.94684261,8.883e-05,2]
[335293070,1724077840232,-688.676981,8.883e-05,2]
[335293071,1724077840242,-5239.21154843,8.883e-05,2]
[335293072,1724077840252,-210.23989812,9.335e-05,2]
[335293073,1724077840263,-210.23989812,9.429e-05,2]
[335293074,1724077840276,-227.88054601,0.000101,2]
[335293075,1724077840288,-250.0,0.00011177,2]
[335293076,1724077840297,-250.0,0.00011208,2]
[335293077,1724077840308,-250.0,0.00011238,2]
[335293078,1724077840318,-250.0,0.00011269,2]
[335293079,1724077840327,-250.0,0.000113,2]
[335293080,1724077840337,-250.0,0.0001133,2]
[335293081,1724077840346,-250.0,0.00011361,2]
[335293082,1724077840355,-250.0,0.00011392,2]
[335293083,1724077840365,-250.0,0.00011422,2]
[335293084,1724077840374,-250.0,0.00011453,2]
[335293085,1724077840384,-250.0,0.00011484,2]
[335293086,1724077840394,-250.0,0.00011514,2]
[335293087,1724077840404,-250.0,0.00011545,2]
[335293088,1724077840414,-250.0,0.00011576,2]
[335293089,1724077840424,-250.0,0.00011606,2]
[335293090,1724077840434,-250.0,0.00011637,2]
[335293091,1724077840443,-250.0,0.00011668,2]
[335293092,1724077840452,-250.0,0.00011698,2]
[335293093,1724077840462,-250.0,0.00011729,2]
[335293094,1724077840473,-6395.00223029,0.00011731,2]
[335293095,1724077840483,-250.0,0.0001176,2]
[335293096,1724077840493,-300.0,0.00011841,2]
[335293097,1724077840711,-300.0,0.00011841,2]
[335293098,1724077840721,-569.55611374,0.00011842,2]
[335293099,1724077840731,-4031.27985494,0.00012,2]
[335293100,1724077840742,-2060.48535807,0.00012629,2]
[335293101,1724077840752,-850.86713135,0.00012689,2]
[335293102,1724077840761,-1500.0,0.00012779,2]
[335293103,1724077840770,-2166.25640825,0.00012779,2]
[335293104,1724077840780,-1613.45959463,0.00012779,2]
[335293105,1724077840789,-600.88577429,0.00012971,2]
[335293106,1724077840799,-389.39621902,0.00012971,3]
[335293107,1724077840808,-780.05358786,0.00012971,2]
[335293108,1724077840818,-186.54146635,0.00012985,2]
[335293109,1724077840827,-157.09608348,0.00012985,2]
[335293110,1724077840837,-155.20369099,0.00012985,2]
[335293111,1724077840846,-154.74465897,0.00012985,2]
[335293112,1724077840856,-728.79489661,0.00012985,2]
[335293113,1724077840871,-190.07446844,0.00012985,2]
[335293114,1724077840883,-520.61647298,0.00012985,2]
[335293115,1724077840893,-165.38951444,0.00012989,2]
[335293116,1724077840902,-155.02257165,0.00012989,2]
[335293117,1724077840912,-536.37933114,0.00012989,2]
[335293118,1724077840922,-196.81150092,0.00012989,2]
[335293119,1724077840933,-301.53815771,0.00012991,2]
[335293120,1724077840944,-862.44048895,0.00013,2]
[335293121,1724077840954,-493.30764145,0.00013025,2]
[335293122,1724077840965,-420.0,0.00013025,2]
[335293123,1724077840975,-495.14476956,0.00013333,2]
[335293124,1724077840985,-176.412015,0.00013699,2]
[335293125,1724077840994,-194.82337617,0.00013699,2]
[335293126,1724077841004,-500.0,0.00013699,2]
[335293127,1724077841014,-378.63010633,0.00013699,2]
[335293128,1724077841023,-500.0,0.00013999,2]
[335293129,1724077841035,-587.89707335,0.00013999,2]
[335293130,1724077841045,-20715.93667635,0.00014,4]
[335293131,1724077841056,-4873.43310846,0.00014,2]
[335293132,1724077841067,-4809.30843746,0.00014245,2]
[335293133,1724077841077,-366.867469,0.00014247,2]
[335293134,1724077841087,-587.0,0.00014327,2]
[335293135,1724077841096,-574.18002641,0.00015,2]
[335293136,1724077841106,-5244.78933856,0.00015,2]
[335293137,1724077841117,-953.38755458,0.00015,2]
[335293138,1724077841127,-227.43331144,0.00015,2]
[335293139,1724077841138,-306.0,0.00015205,2]
[335293140,1724077841149,-402.0,0.0001576,2]
[335293141,1724077841159,-2000.0,0.00015781,2]
[335293142,1724077841170,-184.0,0.00015875,2]
[335293143,1724077841179,-184.0,0.00015875,2]
[335293144,1724077841189,-184.0,0.00015875,2]
[335293145,1724077841199,-184.0,0.00015875,2]
[335293146,1724077841208,-184.0,0.00015875,2]
[335293147,1724077841218,-184.0,0.00015875,2]
[335293148,1724077841228,-184.0,0.00015875,2]
[335293149,1724077841238,-184.0,0.00015875,2]
[335293150,1724077841247,-184.0,0.00015875,2]
[335293151,1724077841256,-184.0,0.00015875,2]
[335293152,1724077841267,-184.0,0.00015875,2]
[335293153,1724077841277,-184.0,0.00015875,2]
[335293154,1724077841295,-184.0,0.00015875,2]
[335293155,1724077841305,-184.0,0.00015875,2]
[335293156,1724077841315,-153.0,0.00015876,2]
[335293157,1724077841324,-153.0,0.00015876,2]
[335293158,1724077841334,-153.0,0.00015876,2]
[335293159,1724077841343,-153.0,0.00015876,2]
[335293160,1724077841353,-153.0,0.00015876,2]
[335293161,1724077841363,-153.0,0.00015876,2]
[335293162,1724077841373,-153.0,0.00015876,2]
[335293163,1724077841382,-153.0,0.00015876,2]
[335293164,1724077841392,-153.0,0.00015876,2]
[335293165,1724077841401,-184.0,0.00015877,2]
[335293166,1724077841412,-184.0,0.00015877,2]
[335293167,1724077841422,-184.0,0.00015877,2]
[335293168,1724077841433,-184.0,0.00015877,2]
[335293169,1724077841443,-184.0,0.00015877,2]
[335293170,1724077841454,-184.0,0.00015877,2]
[335293171,1724077841464,-184.0,0.00015877,2]
[335293172,1724077841473,-176.06261329,0.00015877,2]
[335293218,1724077845846,-1734.00354599,8.794e-05,2]
[335293220,1724077845858,-1772.10825887,0.00012551,2]
[335293222,1724077845869,-7.93738671,0.00015877,2]
[335293223,1724077845879,-184.0,0.00015877,2]
[335293224,1724077845890,-184.0,0.00015877,2]
[335293225,1724077845900,-184.0,0.00015877,2]
[335293226,1724077845910,-184.0,0.00015877,2]
[335293227,1724077845920,-153.0,0.00015878,2]
[335293228,1724077845931,-153.0,0.00015878,2]
[335293229,1724077845940,-153.0,0.00015878,2]
[335293230,1724077845950,-153.0,0.00015878,2]
[335293231,1724077845960,-153.0,0.00015878,2]
[335293232,1724077845971,-153.0,0.00015878,2]
[335293233,1724077845981,-376.838984,0.0001589,2]
[335293234,1724077845991,-398.85753817,0.00016,2]
[335293235,1724077846009,-477.29908137,0.00016,2]
[335293236,1724077846037,-24454.88724762,0.00016,2]
[335293237,1724077846048,-1110.9613583,0.00016181,2]
[335293238,1724077846058,-799.06836661,0.00016228,2]
[335293239,1724077846069,-799.0683666,0.00016256,2]
[335293240,1724077846079,-799.0683666,0.00016283,2]
[335293241,1724077846089,-336.82525701,0.00016302,2]
[335293242,1724077846099,-799.0683666,0.00016311,2]
[335293243,1724077846110,-32241.7499629,0.00016328,2]
[335293244,1724077846121,-4044.3193496,0.00016328,2]
[335293245,1724077846131,-799.0683666,0.00016338,2]
[335293246,1724077846141,-49353.30020105,0.00016338,2]
[335293247,1724077846151,-7464.10932381,0.000164,2]
[335293248,1724077846161,-34937.88785605,0.00016428,2]
[335293260,1724078967101,-273.37336231,7.676e-05,2]
[335293261,1724078967124,-273.37336231,7.754e-05,2]
[335293262,1724078967147,-808.73028578,7.911e-05,2]
[335293448,1724079040450,-244.01680632,7.547e-05,2]
[335293449,1724079040460,-244.01680632,7.623e-05,2]
[335293450,1724079040472,-500.0,7.7e-05,2]
[335293451,1724079040481,-153.2102152,7.7e-05,2]
[335293452,1724079040491,-1.7538721,7.911e-05,2]
[335293453,1724079040500,-156.61787501,9.8e-05,2]
[335293454,1724079040510,-382.3623136,0.0001,2]
[335293455,1724079040520,-250.0,0.00011096,2]
[335293456,1724079040530,-250.0,0.00011126,2]
[335293457,1724079040539,-250.0,0.00011157,2]
[335293458,1724079040549,-3427.989273,0.00011158,2]
[335293459,1724079040558,-250.0,0.00011187,2]
[335293460,1724079040568,-250.0,0.00011218,2]
[335293461,1724079040577,-300.0,0.00011236,2]
[335293462,1724079040590,-24900.0,0.00011237,2]
[335293463,1724079040600,-250.0,0.00011248,2]
[335293464,1724079040608,-250.0,0.00011278,2]
[335293465,1724079040618,-250.0,0.00011309,2]
[335293466,1724079040627,-250.0,0.00011339,2]
[335293467,1724079040637,-250.0,0.0001137,2]
[335293468,1724079040646,-250.0,0.000114,2]
[335293469,1724079040657,-250.0,0.00011431,2]
[335293470,1724079040666,-250.0,0.00011461,2]
[335293471,1724079040676,-250.0,0.00011492,2]
[335293472,1724079040686,-250.0,0.00011522,2]
[335293473,1724079040695,-250.0,0.00011552,2]
[335293474,1724079040704,-250.0,0.00011583,2]
[335293475,1724079040714,-250.0,0.00011613,2]
[335293476,1724079040723,-250.0,0.00011644,2]
[335293477,1724079040733,-250.0,0.00011674,2]
[335293478,1724079040742,-27320.54323271,0.00012356,2]
[335293479,1724079040752,-420.0,0.0001236,2]
[335293480,1724079040761,-2166.25640825,0.00012516,2]
[335293481,1724079040771,-8844.39705201,0.00012629,2]
[335293482,1724079040781,-600.88577429,0.00012782,2]
[335293483,1724079040791,-728.79489661,0.00012886,2]
[335293484,1724079040801,-3487.64008161,0.000129,2]
[335293485,1724079040810,-493.30764145,0.00012971,2]
[335293486,1724079040820,-342.65845262,0.00012985,2]
[335293487,1724079040830,-1613.17789076,0.00012989,2]
[335293562,1724079046035,-5400.23466317,0.00012989,2]
[335293563,1724079046048,-442.56533683,0.00013,2]
[335293580,1724079903111,23797.60086448,0.000131,30]
[335293581,1724079903141,1653.0,0.000131,30]
[335293588,1724080151214,-196.72510748,9.414e-05,2]
[335293589,1724080151235,-196.72510748,9.8e-05,2]
[335293590,1724080151259,-300.0,0.00010273,2]
[335293591,1724080151279,-15134.16332473,0.00010274,2]
[335293592,1724080164110,-273.37336231,9.9e-05,2]
[335293593,1724080164132,-9765.83667527,0.00010274,2]
[335293594,1724080164153,-2809.42739364,0.00010544,2]
[335293595,1724080164175,-250.0,0.00010979,2]
[335293596,1724080164199,-250.0,0.00011009,2]
[335293597,1724080164224,-250.0,0.00011039,2]
[335293598,1724080164250,-195.93673857,0.00011069,2]
[335293688,1724080238326,-273.37336231,9.9e-05,2]
[335293689,1724080238339,-300.0,0.00010273,2]
[335293690,1724080238351,-235.65917972,0.00010274,2]
[335293691,1724080238363,-3619.9309493,0.00010274,2]
[335293692,1724080238374,-939.00420277,0.00010274,2]
[335293693,1724080238387,-405.40975806,0.00010274,2]
[335293694,1724080238405,-3619.9309493,0.00010274,2]
[335293695,1724080238424,-2112.50283852,0.00011069,2]
[335293696,1724080238438,-245.37793569,0.00011069,2]